bitfinex/quotes_SOLUSD_20251006
["timestamp","ask_amount","ask_price","bid_price","bid_amount"]
[1759712136118,31.26,228.26,228.16,0.71]
[1759712136119,0.69,228.25,228.16,0.71]
[1759712136309,31.26,228.26,228.19,5.84704207]
[1759712136727,35.64100044,228.26,228.19,0.71]
[1759712136927,31.26,228.26,228.2,5.13704207]
[1759712137302,31.26,228.26,228.19,5.84704207]
[1759712137533,31.26,228.26,228.21,5.13704207]
[1759712137836,0.6,228.27,228.22,0.71]
[1759712137837,31.3,228.25,228.22,0.71]
[1759712138137,31.3,228.25,228.21,5.13704207]
[1759712138301,31.3,228.25,228.21,5.84704207]
[1759712138734,31.3,228.25,228.21,5.13704207]
[1759712138906,31.3,228.25,228.12,10.87647521]
[1759712138907,31.3,228.25,228.19,5.13704207]
[1759712139310,31.3,228.25,228.19,5.84704207]
[1759712140044,31.3,228.25,228.19,0.71]
[1759712140199,31.3,228.25,228.2,5.13704207]
[1759712140403,31.3,228.25,228.21,0.71]
[1759712140603,31.3,228.25,228.22,5.13704207]
[1759712141444,31.3,228.25,228.24,5.13704207]
[1759712141610,31.3,228.25,228.22,5.13704207]
[1759712142431,31.3,228.25,228.24,5.13704207]
[1759712142633,0.2,228.32,228.24,5.84704207]
[1759712142836,31.28,228.29,228.26,5.13704207]
[1759712143738,3.9367823,228.15,228.06,5.13704207]
[1759712143941,31.28,228.29,228.14,5.13704207]
[1759712144233,31.28,228.29,228.1,5.19594929]
[1759712144234,31.28,228.29,228.26,5.13704207]
[1759712145937,31.28,228.29,228.24,5.13704207]
[1759712146615,31.28,228.29,228.26,5.13704207]
[1759712147944,0.2,228.32,228.28,5.13704207]
[1759712148244,0.2,228.32,228.31,5.13704207]
[1759712148419,0.2,228.4,228.31,5.85704207]
[1759712148622,0.2,228.4,228.39,5.13704207]
[1759712151522,0.2,228.4,228.39,5.85704207]
[1759712152350,0.2,228.4,228.39,5.13704207]
[1759712153070,0.2,228.43,228.4,10.87647521]
[1759712153250,0.2,228.43,228.42,5.13704207]
[1759712153647,0.2,228.43,228.42,16.73351728]
[1759712154477,0.2,228.43,228.42,42.67055935]
[1759712156373,0.2,228.43,228.42,31.67647521]
[1759712156571,0.2,228.43,228.42,20.8]
[1759712156770,0.2,228.43,228.42,25.93704207]
[1759712157152,0.2,228.43,228.42,5.13704207]
[1759712160457,0.2,228.43,228.39,20.8]
[1759712160663,0.2,228.43,228.42,5.13704207]
[1759712161244,0.92,228.43,228.39,5.13704207]
[1759712162453,0.2,228.43,228.39,5.13704207]
[1759712162974,0.2,228.43,228.36,20.8]
[1759712162975,0.72,228.42,228.3,0.72]
[1759712163149,0.72,228.42,228.35,5.13704207]
[1759712163564,0.72,228.42,228.37,5.13704207]
[1759712164678,0.2,228.43,228.41,5.13704207]
[1759712166556,0.2,228.43,228.41,5.85704207]
[1759712166850,0.2,228.43,228.41,5.13704207]
[1759712167748,0.2,228.43,228.41,5.85704207]
[1759712167948,0.2,228.43,228.41,5.13704207]
[1759712168752,0.2,228.43,228.42,11.59647521]
[1759712170758,0.2,228.43,228.42,15.97437556]
[1759712172060,0.2,228.43,228.36,20.0]
[1759712172383,0.2,228.43,228.42,5.13704207]
[1759712172556,0.2,228.43,228.36,0.72]
[1759712172754,0.2,228.43,228.3,20.0]
[1759712172755,0.72,228.42,228.39,5.13704207]
[1759712172981,0.72,228.41,228.35,10.87647521]
[1759712173189,0.2,228.43,228.38,5.13704207]
[1759712173372,0.2,228.43,228.4,5.13704207]
[1759712174058,0.72,228.42,228.4,5.13704207]
[1759712174265,0.2,228.43,228.4,5.13704207]
[1759712174477,0.2,228.43,228.38,20.8]
[1759712174693,0.2,228.43,228.41,5.13704207]
[1759712175161,0.2,228.43,228.39,0.72]
[1759712175364,0.2,228.43,228.41,5.13704207]
[1759712178152,0.2,228.43,228.42,11.57647521]
[1759712178356,0.2,228.43,228.42,32.37647521]
[1759712178580,0.2,228.47,228.46,10.87647521]
[1759712178781,0.2,228.47,228.46,16.01351728]
[1759712178974,0.2,228.47,228.46,16.71351728]
[1759712179183,0.2,228.47,228.45,20.8]
[1759712179358,0.2,228.47,228.45,25.93704207]
[1759712179558,0.9,228.47,228.45,5.13704207]
[1759712180661,0.2,228.47,228.45,5.13704207]
[1759712181180,0.2,228.47,228.4,52.78]
[1759712181181,0.7,228.46,228.4,20.8]
[1759712181364,0.7,228.45,228.4,20.8]
[1759712181565,0.2,228.47,228.39,3.34400536]
[1759712181793,0.2,228.47,228.41,3.34400536]
[1759712182158,0.9,228.47,228.39,20.8]
[1759712182387,0.9,228.47,228.41,3.34400536]
[1759712183386,0.9,228.47,228.33,10.94887092]
[1759712183387,0.2,228.47,228.3,23.34400536]
[1759712183559,0.2,228.47,228.34,3.34400536]
[1759712183560,24.14400536,228.44,228.34,3.34400536]
[1759712183763,3.34400536,228.42,228.34,3.34400536]
[1759712184078,0.7,228.41,228.34,3.34400536]
[1759712184681,0.2,228.47,228.35,31.67647521]
[1759712184883,0.2,228.47,228.42,3.34400536]
[1759712185181,0.2,228.47,228.46,3.34400536]
[1759712186085,0.9,228.47,228.42,0.7]
[1759712186299,0.9,228.47,228.44,3.34400536]
[1759712186594,0.5,228.45,228.44,3.34400536]
[1759712186883,0.2,228.47,228.44,3.34400536]
[1759712187088,0.2,228.47,228.46,3.34400536]
[1759712187663,0.9,228.47,228.41,31.28]
[1759712187865,0.9,228.47,228.45,3.34400536]
[1759712188272,0.2,228.47,228.45,3.34400536]
[1759712189892,0.2,228.47,228.46,0.7]
[1759712194002,0.2,228.47,228.46,5.07713385]
[1759712194207,0.2,228.47,228.46,15.95360906]
[1759712194396,0.2,228.47,228.46,15.92360906]
[1759712194701,0.2,228.47,228.46,47.16360906]
[1759712195105,0.2,228.47,228.46,48.55377353]
[1759712195511,0.2,228.47,228.46,1.39016447]
[1759712195687,0.2,228.47,228.46,33.73663968]
[1759712195998,0.2,228.47,228.46,38.11377353]
[1759712196906,0.66,228.56,228.46,80.31660816]
[1759712197103,0.66,228.56,228.54,3.34119451]
[1759712197404,0.66,228.55,228.54,3.34119451]
[1759712197602,0.66,228.6,228.54,3.34119451]
[1759712197816,0.66,228.59,228.54,3.34119451]
[1759712198119,0.66,228.58,228.54,3.34119451]
[1759712198288,0.66,228.57,228.54,3.34119451]
[1759712198710,0.66,228.56,228.54,3.34119451]
[1759712199013,20.8,228.63,228.54,3.34119451]
[1759712199014,0.66,228.59,228.54,3.34119451]
[1759712199214,0.66,228.58,228.54,3.34119451]
[1759712199517,0.66,228.57,228.54,3.34119451]
[1759712199724,0.66,228.56,228.54,3.34119451]
[1759712201118,0.66,228.58,228.54,3.34119451]
[1759712201429,3.34119451,228.62,228.5,0.67]
[1759712201430,0.66,228.57,228.5,0.67]
[1759712201722,0.66,228.57,228.53,3.34119451]
[1759712201917,0.66,228.56,228.53,3.34119451]
[1759712202216,0.66,228.58,228.53,3.34119451]
[1759712202422,0.66,228.57,228.53,3.34119451]
[1759712202613,0.66,228.59,228.55,3.34119451]
[1759712203001,0.66,228.58,228.55,3.34119451]
[1759712203492,3.34119451,228.62,228.55,3.34119451]
[1759712203694,0.66,228.61,228.55,3.34119451]
[1759712203904,0.66,228.6,228.55,3.34119451]
[1759712204232,0.66,228.59,228.55,3.34119451]
[1759712204730,0.66,228.58,228.55,3.34119451]
[1759712205314,0.66,228.6,228.55,3.34119451]
[1759712205512,0.66,228.59,228.55,3.34119451]
[1759712205920,0.66,228.58,228.55,3.34119451]
[1759712206629,0.66,228.6,228.55,3.34119451]
[1759712206800,0.66,228.59,228.55,3.34119451]
[1759712207000,0.66,228.59,228.48,0.67]
[1759712207306,0.66,228.59,228.55,3.34119451]
[1759712208226,24.14119451,228.64,228.52,0.66]
[1759712208227,0.69,228.58,228.54,3.34119451]
[1759712208420,0.69,228.6,228.54,3.34119451]
[1759712208629,0.69,228.6,228.54,4.00119451]
[1759712209606,4.57332347,228.66,228.59,6.68238902]
[1759712209607,0.2,228.66,228.59,6.68238902]
[1759712209806,0.2,228.66,228.65,3.34119451]
[1759712210028,0.2,228.66,228.65,14.21766972]
[1759712210203,0.2,228.66,228.65,14.87766972]
[1759712210928,0.2,228.66,228.65,19.25116633]
[1759712213823,0.2,228.66,228.65,14.87766972]
[1759712214137,0.2,228.66,228.65,46.17766972]
[1759712214336,0.2,228.66,228.65,50.55116633]
[1759712214710,0.2,228.66,228.65,19.25116633]
[1759712214916,0.2,228.66,228.65,50.55116633]
[1759712215837,0.2,228.66,228.65,10.87647521]
[1759712216137,0.2,228.66,228.65,49.87116633]
[1759712216637,0.2,228.66,228.65,50.53116633]
[1759712217017,0.2,228.66,228.65,48.57778606]
[1759712217735,0.2,228.66,228.65,10.87647521]
[1759712217942,0.2,228.66,228.65,12.26428945]
[1759712218146,0.2,228.66,228.65,43.52428945]
[1759712218445,0.2,228.66,228.65,47.89778606]
[1759712219051,0.2,228.66,228.65,43.52428945]
[1759712219335,0.2,228.66,228.65,31.24]
[1759712219536,0.2,228.66,228.65,32.62781424]
[1759712221432,0.2,228.66,228.65,48.53778606]
[1759712223979,0.2,228.66,228.64,20.8]
[1759712223980,0.89,228.66,228.64,20.8]
[1759712224249,0.69,228.65,228.64,1.38781424]
[1759712224550,0.2,228.66,228.64,1.38781424]
[1759712224851,0.89,228.66,228.64,1.38781424]
[1759712225030,0.2,228.66,228.64,1.38781424]
[1759712225426,0.69,228.65,228.61,20.8]
[1759712225636,0.69,228.65,228.64,1.38781424]
[1759712225838,0.7,228.66,228.64,1.38781424]
[1759712226245,0.7,228.66,228.64,5.76147196]
[1759712226441,0.2,228.66,228.65,42.75647521]
[1759712226649,0.2,228.66,228.65,44.14428945]
[1759712226849,0.2,228.7,228.69,10.87647521]
[1759712227053,0.2,228.7,228.69,43.48428945]
[1759712227225,0.2,228.7,228.69,44.14428945]
[1759712227839,0.2,228.74,228.73,10.87647521]
[1759712228047,0.2,228.74,228.73,47.85625639]
[1759712228251,0.2,228.74,228.73,48.51625639]
[1759712229140,0.69,228.82,228.76,20.8]
[1759712229342,0.69,228.82,228.8,3.33323948]
[1759712229749,0.69,228.81,228.8,3.33323948]
[1759712230366,0.69,228.85,228.8,3.33323948]
[1759712230570,0.69,228.85,228.84,3.33323948]
[1759712230750,0.2,228.86,228.84,3.33323948]
[1759712230954,0.69,228.85,228.84,3.33323948]
[1759712231367,0.2,228.86,228.84,3.33323948]
[1759712232467,0.89,228.86,228.84,3.33323948]
[1759712232666,0.89,228.86,228.85,3.33323948]
[1759712232966,0.2,228.86,228.85,3.33323948]
[1759712233177,0.89,228.86,228.85,3.33323948]
[1759712233466,0.89,228.86,228.82,3.33323948]
[1759712233661,0.69,228.85,228.82,3.33323948]
[1759712233845,0.69,228.84,228.82,3.33323948]
[1759712234050,0.2,228.86,228.82,3.33323948]
[1759712234367,0.2,228.86,228.8,44.53405716]
[1759712234368,0.69,228.85,228.84,3.33323948]
[1759712235666,0.2,228.86,228.84,3.33323948]
[1759712236673,0.2,228.86,228.84,3.99323948]
[1759712236951,0.2,228.86,228.84,3.33323948]
[1759712237893,0.2,228.86,228.84,4.01323948]
[1759712238282,0.2,228.86,228.84,3.33323948]
[1759712238611,0.69,228.85,228.8,13.31405716]
[1759712238887,0.69,228.85,228.84,3.33323948]
[1759712239983,0.69,228.85,228.8,13.04226378]
[1759712240187,0.2,228.86,228.82,3.33323948]
[1759712240188,0.69,228.84,228.82,3.33323948]
[1759712240368,0.69,228.84,228.79,51.98]
[1759712240683,0.2,228.86,228.83,3.33323948]
[1759712240886,0.69,228.85,228.83,3.33323948]
[1759712241064,0.2,228.86,228.81,5.1072181]
[1759712241065,0.69,228.84,228.81,5.1072181]
[1759712241976,0.2,228.86,228.81,5.1072181]
[1759712241977,0.89,228.86,228.81,5.1072181]
[1759712242475,0.2,228.86,228.83,5.1072181]
[1759712242671,0.2,228.86,228.81,0.68]
[1759712242978,0.89,228.86,228.83,5.1072181]
[1759712243562,0.2,228.86,228.83,5.1072181]
[1759712244268,0.2,228.86,228.8,31.86]
[1759712244269,0.2,228.86,228.85,5.1072181]
[1759712244987,0.2,228.86,228.83,10.87647521]
[1759712245284,0.2,228.86,228.85,5.1072181]
[1759712246506,0.2,228.86,228.85,21.03336776]
[1759712248881,0.2,228.86,228.85,15.92614966]
[1759712249189,0.2,228.86,228.85,47.12369331]
[1759712249488,0.2,228.86,228.85,47.80369331]
[1759712249685,0.2,228.86,228.85,52.17336776]
[1759712251090,0.2,228.86,228.85,49.23110448]
[1759712251879,0.2,228.86,228.85,44.86143003]
[1759712252084,0.2,228.86,228.85,10.87647521]
[1759712252285,0.2,228.86,228.85,44.16143003]
[1759712252680,0.2,228.86,228.85,48.53110448]
[1759712252985,0.2,228.86,228.85,49.21110448]
[1759712254882,0.2,228.86,228.85,49.19110448]
[1759712255981,0.2,228.87,228.86,10.87647521]
[1759712256179,0.2,228.87,228.86,11.58647521]
[1759712258203,0.2,228.87,228.86,15.95595873]
[1759712260994,0.2,228.87,228.86,47.01595873]
[1759712261993,0.2,228.87,228.86,17.41091355]
[1759712262193,0.85,228.87,228.86,33.84143003]
[1759712262492,0.85,228.87,228.86,38.21091355]
[1759712263079,0.2,228.87,228.86,38.21091355]
[1759712263288,0.2,228.87,228.86,69.98091355]
[1759712264880,0.2,228.87,228.86,69.27091355]
[1759712265402,0.2,228.87,228.86,69.98091355]
[1759712266304,0.2,228.87,228.86,69.25091355]
[1759712266903,0.2,228.87,228.86,38.21091355]
[1759712267204,0.2,228.87,228.86,69.25091355]
[1759712267892,0.2,228.87,228.86,33.84143003]
[1759712268205,0.2,228.87,228.86,38.21091355]
[1759712269697,0.2,228.87,228.86,33.84143003]
[1759712269887,0.2,228.87,228.86,17.41091355]
[1759712272598,0.2,228.87,228.86,13.04143003]
[1759712272801,0.92,228.87,228.86,13.04143003]
[1759712272998,0.2,228.87,228.86,13.72143003]
[1759712273200,0.2,228.87,228.86,13.04143003]
[1759712274200,0.92,228.87,228.86,13.04143003]
[1759712274505,0.2,228.87,228.86,13.04143003]
[1759712275613,0.92,228.87,228.86,2.16495482]
[1759712276706,0.2,228.87,228.86,2.16495482]
[1759712277309,0.92,228.87,228.86,2.16495482]
[1759712277505,0.2,228.87,228.86,2.16495482]
[1759712278626,0.92,228.87,228.86,2.16495482]
[1759712280118,0.92,228.87,228.83,31.04]
[1759712280119,0.92,228.87,228.8,5.31841659]
[1759712280291,0.72,228.86,228.78,2.16495482]
[1759712280497,0.72,228.85,228.8,2.16495482]
[1759712280719,0.2,228.87,228.82,2.16495482]
[1759712280915,0.72,228.84,228.82,2.16495482]
[1759712281219,0.72,228.83,228.82,2.16495482]
[1759712281714,0.72,228.83,228.77,10.87647521]
[1759712281911,0.72,228.83,228.8,2.16495482]
[1759712282315,0.72,228.82,228.8,2.16495482]
[1759712283099,0.72,228.84,228.8,2.16495482]
[1759712283306,0.72,228.83,228.8,2.16495482]
[1759712283901,0.2,228.87,228.8,2.16495482]
[1759712284213,0.72,228.86,228.8,2.16495482]
[1759712284413,0.72,228.85,228.8,2.16495482]
[1759712284716,0.72,228.84,228.8,2.16495482]
[1759712284924,0.2,228.87,228.8,2.16495482]
[1759712285104,0.72,228.84,228.8,2.16495482]
[1759712285305,0.72,228.83,228.8,2.16495482]
[1759712285504,0.72,228.82,228.8,2.16495482]
[1759712286222,0.72,228.84,228.8,2.16495482]
[1759712286403,0.72,228.83,228.8,2.16495482]
[1759712287029,0.72,228.82,228.79,13.24063646]
[1759712287203,0.72,228.81,228.77,13.04143003]
[1759712287399,0.72,228.8,228.77,13.04143003]
[1759712287601,0.72,228.8,228.77,26.45557733]
[1759712288419,2.16495482,228.85,228.77,26.45557733]
[1759712288619,0.72,228.8,228.77,26.45557733]
[1759712289731,0.72,228.8,228.77,15.57910212]
[1759712290326,0.72,228.79,228.75,2.16495482]
[1759712290532,4.3696815,228.85,228.73,2.16495482]
[1759712290533,0.72,228.78,228.73,2.16495482]
[1759712290713,0.72,228.78,228.7,6.69203653]
[1759712290714,0.72,228.78,228.71,10.87647521]
[1759712290917,0.72,228.77,228.71,13.04143003]
[1759712291824,0.72,228.77,228.73,2.16495482]
[1759712292031,0.72,228.79,228.75,2.16495482]
[1759712292218,0.72,228.78,228.73,2.16495482]
[1759712293242,0.72,228.78,228.73,2.84495482]
[1759712294541,0.72,228.77,228.73,2.16495482]
[1759712295443,31.04,228.82,228.68,31.73212748]
[1759712295444,0.72,228.76,228.68,0.68]
[1759712295824,0.72,228.76,228.68,7.21786453]
[1759712296143,0.72,228.75,228.68,7.21786453]
[1759712296515,1.22,228.75,228.68,7.21786453]
[1759712296916,1.22,228.75,228.68,2.84495482]
[1759712298947,0.71,228.74,228.65,13.74143003]
[1759712299242,31.75,228.73,228.65,2.86495482]
[1759712299417,0.71,228.72,228.65,2.86495482]
[1759712299621,0.71,228.71,228.65,2.86495482]
[1759712299817,0.71,228.72,228.65,2.86495482]
[1759712300025,0.71,228.72,228.65,7.23843817]
[1759712300226,31.04,228.73,228.65,7.23843817]
[1759712300418,0.71,228.72,228.65,7.23843817]
[1759712301038,31.04,228.73,228.65,2.86495482]
[1759712301241,0.71,228.71,228.65,2.86495482]
[1759712301615,31.04,228.73,228.65,2.16495482]
[1759712301821,2.87495482,228.72,228.63,17.61522446]
[1759712302019,0.71,228.71,228.63,13.24143003]
[1759712302342,2.16495482,228.7,228.63,0.2]
[1759712302536,0.71,228.69,228.63,0.2]
[1759712305653,2.0989236,228.69,228.63,0.2]
[1759712306238,1.3889236,228.67,228.63,0.2]
[1759712306442,31.04,228.66,228.63,0.2]
[1759712306640,0.71,228.65,228.63,0.2]
[1759712306957,0.71,228.64,228.63,0.2]
[1759712308044,31.75,228.64,228.63,0.2]
[1759712318167,899.8,228.6,228.56,0.66]
[1759712318473,31.04,228.59,228.56,0.66]
[1759712320254,31.04,228.59,228.54,0.2]
[1759712320255,0.69,228.58,228.54,0.2]
[1759712320459,0.69,228.58,228.54,0.86]
[1759712320656,31.04,228.59,228.55,0.66]
[1759712320853,31.04,228.59,228.54,0.2]
[1759712321049,899.8,228.6,228.57,1.3889236]
[1759712321358,31.04,228.59,228.58,0.66]
[1759712321662,31.04,228.59,228.54,4.57549741]
[1759712321863,899.8,228.6,228.58,1.3889236]
[1759712322053,899.8,228.6,228.59,15.25111977]
[1759712322252,899.8,228.6,228.59,15.91111977]
[1759712322454,899.8,228.6,228.59,20.69798081]
[1759712322455,835.72019642,228.6,228.59,20.69798081]
[1759712322661,782.93121275,228.6,228.59,26.71001734]
[1759712322978,600.2917336,228.6,228.59,48.09894094]
[1759712323179,305.08390498,228.6,228.59,52.26571174]
[1759712323358,139.67434413,228.6,228.59,52.26571174]
[1759712323553,136.89406106,228.6,228.59,65.41571174]
[1759712323775,31.04,228.82,228.72,31.67647521]
[1759712323977,0.69,228.81,228.73,4.78686104]
[1759712324177,31.04,228.82,228.79,1.3889236]
[1759712324360,31.73,228.82,228.79,1.3889236]
[1759712324679,31.04,228.82,228.81,1.3889236]
[1759712324992,31.04,228.83,228.79,1.3889236]
[1759712325195,0.69,228.82,228.78,1.3889236]
[1759712325486,0.69,228.81,228.76,1.3889236]
[1759712325658,0.69,228.85,228.81,1.3889236]
[1759712325853,31.73,228.84,228.79,1.3889236]
[1759712326164,0.69,228.83,228.74,7.91819949]
[1759712326377,31.04,228.84,228.82,1.3889236]
[1759712326769,0.69,228.83,228.78,1.3889236]
[1759712327365,0.69,228.82,228.78,1.3889236]
[1759712327569,0.68,228.81,228.78,1.3889236]
[1759712328277,0.68,228.8,228.76,1.3889236]
[1759712328482,0.68,228.79,228.76,1.3889236]
[1759712329883,0.68,228.78,228.74,1.3889236]
[1759712330863,0.68,228.77,228.71,4.37222443]
[1759712331067,0.68,228.77,228.73,1.3889236]
[1759712332892,0.68,228.76,228.72,1.3889236]
[1759712335082,0.68,228.76,228.72,5.7609075]
[1759712336389,31.04,228.81,228.72,1.3889236]
[1759712336611,2.0689236,228.75,228.64,1.3889236]
[1759712336790,31.7,228.74,228.66,20.8]
[1759712336991,0.68,228.73,228.66,20.8]
[1759712337206,0.68,228.72,228.66,25.17329524]
[1759712338893,0.68,228.72,228.66,20.8]
[1759712339591,0.68,228.71,228.64,4.37361865]
[1759712339975,0.68,228.73,228.65,1.3889236]
[1759712340578,31.02,228.74,228.66,4.37330534]
[1759712340778,0.68,228.73,228.66,4.37330534]
[1759712341093,0.68,228.72,228.66,4.37330534]
[1759712341495,0.68,228.71,228.65,1.3889236]
[1759712341671,1.3889236,228.73,228.63,20.8]
[1759712341874,31.02,228.74,228.44,180.39607456]
[1759712341875,1.3889236,228.69,228.58,10.93707944]
[1759712342093,1.3889236,228.69,228.56,35.39521876]
[1759712342094,0.68,228.68,228.59,22.1889236]
[1759712342294,0.68,228.67,228.61,20.8]
[1759712342500,1.3889236,228.69,228.61,20.8]
[1759712342673,0.68,228.66,228.59,1.3889236]
[1759712342877,0.68,228.65,228.59,4.37464261]
[1759712343201,0.68,228.64,228.57,1.3889236]
[1759712343784,0.68,228.64,228.57,14.73212695]
[1759712344196,0.68,228.64,228.58,4.37483229]
[1759712345109,0.68,228.63,228.57,14.73212695]
[1759712345482,0.68,228.62,228.57,14.73212695]
[1759712345682,0.68,228.61,228.57,14.73212695]
[1759712346095,0.68,228.61,228.57,19.10714807]
[1759712347511,0.68,228.64,228.57,19.10714807]
[1759712348585,1.3889236,228.67,228.57,30.04471642]
[1759712348804,0.68,228.66,228.57,30.04471642]
[1759712349198,1.3889236,228.67,228.57,30.04471642]
[1759712349404,0.68,228.66,228.57,30.04471642]
[1759712349603,0.68,228.65,228.57,30.04471642]
[1759712350099,1.3889236,228.67,228.59,1.3889236]
[1759712350290,0.68,228.68,228.61,1.3889236]
[1759712350805,0.68,228.68,228.57,28.65579282]
[1759712351006,1.3889236,228.7,228.57,28.65579282]
[1759712351195,0.68,228.67,228.6,1.3889236]
[1759712352306,0.68,228.67,228.6,5.76326518]
[1759712354809,51.84,228.72,228.6,15.31047456]
[1759712355105,1.3889236,228.69,228.6,20.8]
[1759712355311,0.68,228.68,228.6,1.3889236]
[1759712355515,0.68,228.67,228.6,5.76334972]
[1759712355702,0.68,228.66,228.6,5.76334972]
[1759712356212,1.3889236,228.69,228.58,20.8]
[1759712356515,2.0689236,228.68,228.6,1.3889236]
[1759712356703,0.68,228.67,228.6,1.3889236]
[1759712357212,0.68,228.66,228.6,1.3889236]
[1759712358303,0.68,228.66,228.6,5.76328414]
[1759712359691,0.68,228.66,228.6,1.3889236]
[1759712360703,0.68,228.65,228.6,1.3889236]
[1759712361211,1.3889236,228.68,228.58,20.8]
[1759712361508,0.68,228.64,228.58,22.1889236]
[1759712362104,0.68,228.64,228.58,26.56368672]
[1759712362905,1.3889236,228.67,228.58,26.56368672]
[1759712363112,0.68,228.66,228.59,2.1706795]
[1759712363818,0.68,228.65,228.6,2.1706795]
[1759712364023,0.68,228.64,228.6,2.1706795]
[1759712364695,64.9745636,228.72,228.6,17.48113864]
[1759712364895,0.68,228.69,228.62,2.1706795]
[1759712365102,0.68,228.68,228.62,2.1706795]
[1759712366742,0.68,228.68,228.63,4.37387919]
[1759712366899,2.1706795,228.71,228.63,4.37387919]
[1759712367099,0.68,228.67,228.63,4.37387919]
[1759712368320,0.68,228.67,228.6,10.93613298]
[1759712368538,0.68,228.67,228.61,2.1706795]
[1759712369826,0.68,228.67,228.62,4.37407051]
[1759712370446,0.68,228.73,228.65,22.9706795]
[1759712370606,0.68,228.75,228.69,2.1706795]
[1759712370807,0.68,228.75,228.71,2.1706795]
[1759712371035,0.68,228.74,228.71,2.1706795]
[1759712371737,0.68,228.73,228.69,4.37265205]
[1759712372038,0.68,228.73,228.7,2.1706795]
[1759712372521,0.68,228.73,228.69,4.37265205]
[1759712372730,0.68,228.73,228.7,2.1706795]
[1759712373318,0.71,228.73,228.7,2.1706795]
[1759712373511,0.71,228.72,228.7,2.1706795]
[1759712374614,2.1706795,228.77,228.7,2.1706795]
[1759712374913,0.71,228.76,228.7,2.1706795]
[1759712375110,0.71,228.75,228.7,2.1706795]
[1759712375312,0.71,228.74,228.7,2.1706795]
[1759712375519,0.71,228.73,228.7,2.1706795]
[1759712375727,0.71,228.72,228.7,2.1706795]
[1759712376728,2.1706795,228.77,228.7,2.1706795]
[1759712376931,0.71,228.74,228.71,2.1706795]
[1759712377130,2.1706795,228.78,228.71,2.1706795]
[1759712377131,0.71,228.73,228.71,2.1706795]
[1759712379940,2.1706795,228.78,228.71,2.1706795]
[1759712380132,0.71,228.72,228.71,2.1706795]
[1759712381019,0.71,228.72,228.57,13.34320335]
[1759712381020,0.71,228.72,228.63,4.37387919]
[1759712381224,0.71,228.71,228.67,2.1706795]
[1759712381442,0.71,228.7,228.67,2.1706795]
[1759712381943,0.71,228.69,228.67,2.1706795]
[1759712384144,20.8,228.77,228.6,10.93612017]
[1759712384145,0.71,228.68,228.6,10.93612017]
[1759712384443,0.71,228.68,228.63,2.1706795]
[1759712384643,0.71,228.67,228.63,2.1706795]
[1759712384841,0.71,228.69,228.63,2.1706795]
[1759712385557,20.8,228.71,228.63,2.1706795]
[1759712385558,0.71,228.68,228.63,2.1706795]
[1759712386452,0.71,228.67,228.63,6.54453263]
[1759712387152,0.71,228.66,228.63,6.54453263]
[1759712387359,0.71,228.68,228.63,6.54453263]
[1759712387559,0.72,228.67,228.63,6.54453263]
[1759712387750,0.72,228.67,228.63,4.37385313]
[1759712388063,0.72,228.67,228.63,6.54453263]
[1759712390568,0.72,228.66,228.63,6.54453263]
[1759712390953,0.72,228.68,228.63,6.54453263]
[1759712391254,0.72,228.67,228.63,6.54453263]
[1759712391668,0.5,228.69,228.67,20.8]
[1759712391964,0.72,228.79,228.68,2.1706795]